bitfinex-derivatives/quotes_BTCF0:USTF0_20260106
["timestamp","ask_amount","ask_price","bid_price","bid_amount"]
[1767658418070,0.09660152,93810.0,93798.0,0.04]
[1767658418273,0.01066,93810.0,93798.0,0.08226474]
[1767658418575,0.00566,93810.0,93798.0,0.04]
[1767658419162,0.08594152,93810.0,93798.0,0.04]
[1767658419367,0.10570886,93807.0,93798.0,0.04]
[1767658419675,0.010661,93804.0,93798.0,0.04]
[1767658419876,0.01066,93807.0,93798.0,0.04]
[1767658420073,0.00566,93807.0,93798.0,0.04]
[1767658420676,0.09504886,93827.0,93806.0,0.12384538]
[1767658420872,0.010659,93815.0,93807.0,0.03087869]
[1767658421081,0.09504886,93816.0,93796.0,0.09064]
[1767658421283,0.09504886,93816.0,93796.0,0.13064]
[1767658421465,0.08594152,93810.0,93796.0,0.13064]
[1767658421774,0.010661,93801.0,93796.0,0.04]
[1767658422177,0.010661,93801.0,93789.0,0.03051639]
[1767658422476,0.010661,93803.0,93789.0,0.04]
[1767658423177,0.09504886,93821.0,93799.0,0.03750213]
[1767658423376,0.09504886,93821.0,93801.0,0.03750213]
[1767658423570,0.09504886,93821.0,93802.0,0.03750213]
[1767658423778,0.17658152,93820.0,93802.0,0.07750213]
[1767658424171,0.01066,93811.0,93802.0,0.07750213]
[1767658425173,0.09504886,93819.0,93802.0,0.04]
[1767658425376,0.09504886,93818.0,93802.0,0.04]
[1767658425570,0.01066,93806.0,93793.0,0.02514884]
[1767658425772,0.010661,93804.0,93793.0,0.04]
[1767658426178,0.01066,93806.0,93793.0,0.04]
[1767658427576,0.02210071,93805.0,93793.0,0.04]
[1767658427783,0.02210071,93804.0,93793.0,0.04]
[1767658427977,0.02210071,93803.0,93793.0,0.04]
[1767658428175,0.02210071,93802.0,93793.0,0.04]
[1767658428376,0.01066,93806.0,93793.0,0.04]
[1767658428671,0.02210428,93805.0,93793.0,0.04]
[1767658428878,0.02210428,93804.0,93793.0,0.04]
[1767658429072,0.02210428,93803.0,93793.0,0.04]
[1767658429285,0.02210428,93802.0,93793.0,0.04]
[1767658429483,0.02210428,93801.0,93793.0,0.04]
[1767658429785,0.01710428,93800.0,93793.0,0.04]
[1767658429973,0.09064,93809.0,93794.0,0.02261538]
[1767658430178,0.01066,93806.0,93795.0,0.02261538]
[1767658430380,0.00566,93806.0,93795.0,0.06261538]
[1767658430776,0.010661,93800.0,93782.0,0.10362969]
[1767658431086,0.09660252,93800.0,93784.0,0.010663]
[1767658431289,0.010661,93800.0,93784.0,0.050663]
[1767658431485,0.010661,93800.0,93784.0,0.04]
[1767658431691,0.010661,93800.0,93784.0,0.06238708]
[1767658431885,0.010661,93803.0,93786.0,0.02238708]
[1767658432086,0.010661,93803.0,93787.0,0.02348932]
[1767658432391,0.1013,93809.0,93795.0,0.02348932]
[1767658432685,0.09064,93809.0,93797.0,0.02348932]
[1767658432886,0.09064,93809.0,93798.0,0.02297064]
[1767658433200,0.101299,93814.0,93800.0,0.02297064]
[1767658433392,0.101299,93814.0,93801.0,0.02297064]
[1767658433585,0.101299,93814.0,93801.0,0.06297064]
[1767658433891,0.09064,93814.0,93801.0,0.06297064]
[1767658437386,0.09064,93814.0,93802.0,0.010661]
[1767658437588,0.09064,93814.0,93802.0,0.050661]
[1767658437889,0.09064,93814.0,93804.0,0.01066]
[1767658438087,0.09064,93814.0,93804.0,0.05066]
[1767658438392,0.09064,93814.0,93804.0,0.04]
[1767658439995,0.08564,93814.0,93804.0,0.04]
[1767658440294,0.08064,93814.0,93804.0,0.04]
[1767658440794,0.09558257,93821.0,93804.0,0.04]
[1767658441096,0.09064,93820.0,93808.0,0.01368272]
[1767658441289,0.09064,93819.0,93808.0,0.02716074]
[1767658441785,0.02207991,93818.0,93808.0,0.02716074]
[1767658442093,0.12035554,93817.0,93808.0,0.02716074]
[1767658442294,0.02208167,93816.0,93808.0,0.02716074]
[1767658442495,0.02208167,93815.0,93808.0,0.02716074]
[1767658442686,0.02208167,93814.0,93808.0,0.02716074]
[1767658442886,0.02208167,93813.0,93808.0,0.02716074]
[1767658443087,0.02208167,93812.0,93808.0,0.02716074]
[1767658443287,0.02208167,93811.0,93808.0,0.02716074]
[1767658443488,0.02208167,93810.0,93808.0,0.02716074]
[1767658443689,0.02208167,93809.0,93808.0,0.02716074]
[1767658443896,0.02208167,93814.0,93808.0,0.02716074]
[1767658444495,0.09827563,93810.0,93808.0,7.4e-07]
[1767658444696,0.1203573,93809.0,93799.0,0.010661]
[1767658444895,0.02241614,93808.0,93799.0,0.040661]
[1767658445096,0.02241614,93807.0,93799.0,0.040661]
[1767658445297,0.02241614,93806.0,93799.0,0.03]
[1767658445499,0.02241614,93805.0,93799.0,0.03]
[1767658445802,0.02241614,93804.0,93799.0,0.03]
[1767658446003,0.09064,93819.0,93805.0,0.01066]
[1767658446300,0.09064,93819.0,93805.0,0.04]
[1767658447803,0.10893463,93817.0,93805.0,0.04]
[1767658448103,0.10893463,93816.0,93805.0,0.04]
[1767658448492,0.01066,93806.0,93792.0,0.09064]
[1767658448696,0.09827563,93808.0,93792.0,0.13064]
[1767658449299,0.09827563,93808.0,93793.0,0.010662]
[1767658449511,0.09827563,93808.0,93793.0,0.050662]
[1767658450208,0.01066,93807.0,93793.0,0.04]
[1767658451007,0.10893663,93804.0,93792.0,0.07303333]
[1767658451195,0.09827563,93799.0,93792.0,0.04]
[1767658451401,0.10893563,93805.0,93787.0,0.13072246]
[1767658451707,0.010661,93802.0,93787.0,0.1617]
[1767658452597,0.10893663,93804.0,93787.0,0.172362]
[1767658452799,0.010661,93802.0,93787.0,0.1617]
[1767658453305,0.09064,93807.0,93787.0,0.1617]
[1767658453306,0.09827563,93799.0,93787.0,0.04]
[1767658455807,0.09327563,93799.0,93787.0,0.04]
[1767658456695,0.14949993,93799.0,93787.0,0.04]
[1767658456898,0.08827563,93799.0,93787.0,0.04]
[1767658458010,0.02255493,93798.0,93787.0,0.04]
[1767658458211,0.02255493,93797.0,93787.0,0.04]
[1767658458412,0.02255493,93796.0,93787.0,0.04]
[1767658458598,0.02255493,93795.0,93787.0,0.04]
[1767658458907,0.12083056,93794.0,93787.0,0.04]
[1767658459106,0.02255493,93793.0,93787.0,0.04]
[1767658459302,0.02255493,93792.0,93787.0,0.04]
[1767658459500,0.02255493,93791.0,93787.0,0.04]
[1767658459700,0.02255493,93790.0,93787.0,0.04]
[1767658459906,0.02255493,93789.0,93787.0,0.04]
[1767658460102,0.02255493,93788.0,93782.0,0.010663]
[1767658460310,0.02255493,93787.0,93782.0,0.050663]
[1767658460511,0.02255493,93786.0,93782.0,0.050663]
[1767658460702,0.02255493,93785.0,93782.0,0.050663]
[1767658460901,0.09827563,93794.0,93782.0,0.050663]
[1767658461106,0.09827563,93794.0,93782.0,0.04]
[1767658461903,0.09827563,93794.0,93783.0,0.010663]
[1767658462104,0.09827563,93794.0,93783.0,0.050663]
[1767658462713,0.09827563,93794.0,93783.0,0.04]
[1767658463305,0.09827563,93792.0,93779.0,0.00213268]
[1767658463608,0.0612243,93797.0,93783.0,0.010663]
[1767658463805,0.09827563,93804.0,93784.0,0.05115235]
[1767658464010,0.010661,93801.0,93784.0,0.04]
[1767658464304,0.005661,93801.0,93784.0,0.04]
[1767658464506,0.005661,93801.0,93785.0,0.010663]
[1767658464706,0.005661,93801.0,93785.0,0.050663]
[1767658464912,0.09827563,93803.0,93785.0,0.04]
[1767658465107,0.15949993,93802.0,93786.0,0.010663]
[1767658465307,0.010661,93800.0,93786.0,0.050663]
[1767658466414,0.010661,93797.0,93786.0,0.04]
[1767658466806,0.010662,93795.0,93786.0,0.04]
[1767658467204,0.010662,93793.0,93786.0,0.04]
[1767658467412,0.15949993,93791.0,93779.0,0.00213268]
[1767658467615,0.15949993,93791.0,93779.0,0.04213268]
[1767658467914,0.15949993,93791.0,93779.0,0.05279568]
[1767658468304,0.09827563,93791.0,93779.0,0.04213268]
[1767658468506,0.01066,93808.0,93789.0,0.05690964]
[1767658468815,0.010661,93804.0,93791.0,0.05690964]
[1767658469012,0.09068,93807.0,93791.0,0.04]
[1767658469215,0.010661,93800.0,93791.0,0.04]
[1767658469416,0.09068,93807.0,93779.0,0.00213268]
[1767658469417,0.09068,93807.0,93780.0,0.010663]
[1767658469710,0.09068,93807.0,93782.0,0.010663]
[1767658469914,0.09068,93807.0,93784.0,0.010663]
[1767658470213,0.010662,93795.0,93784.0,0.04]
[1767658470601,0.010662,93794.0,93784.0,0.04]
[1767658470804,0.0612243,93795.0,93784.0,0.04]
[1767658471005,0.010661,93797.0,93784.0,0.04]
[1767658471615,0.010661,93804.0,93784.0,0.09758791]
[1767658471918,0.010661,93804.0,93790.0,0.010662]
[1767658472214,0.010661,93802.0,93790.0,0.04]
[1767658472916,0.02227099,93801.0,93790.0,0.04]
[1767658473112,0.02227099,93800.0,93790.0,0.04]
[1767658473318,0.02227099,93799.0,93790.0,0.04]
[1767658473505,0.02227099,93798.0,93790.0,0.04]
[1767658473711,0.02227099,93797.0,93790.0,0.04]
[1767658474011,0.02227099,93796.0,93790.0,0.04]
[1767658474214,0.02227099,93795.0,93790.0,0.04]
[1767658474407,0.02227099,93794.0,93790.0,0.04]
[1767658474608,0.02227099,93793.0,93790.0,0.04]
[1767658474808,0.02227099,93792.0,93790.0,0.04]
[1767658475115,0.010661,93802.0,93790.0,0.04]
[1767658475412,0.010661,93802.0,93790.0,0.00095753]
[1767658475615,0.010661,93802.0,93790.0,0.04]
[1767658477517,0.05883108,93804.0,93790.0,0.04]
[1767658478319,0.15785349,93803.0,93779.0,0.05972059]
[1767658478521,0.05883108,93794.0,93779.0,0.04213268]
[1767658478727,0.05883108,93793.0,93779.0,0.04213268]
[1767658479218,0.09902241,93794.0,93779.0,0.04213268]
[1767658479425,0.10968441,93794.0,93779.0,0.04213268]
[1767658479624,0.010662,93794.0,93779.0,0.04213268]
[1767658480326,0.010662,93794.0,93780.0,0.010663]
[1767658480626,0.010662,93794.0,93780.0,0.050663]
[1767658480811,0.010662,93794.0,93781.0,0.05758791]
[1767658481020,0.010661,93798.0,93784.0,0.05758791]
[1767658481325,0.010661,93798.0,93784.0,0.04]
[1767658482116,0.010661,93798.0,93784.0,0.050663]
[1767658482621,0.05883108,93803.0,93786.0,0.010662]
[1767658482823,0.010661,93803.0,93788.0,0.010662]
[1767658483119,0.010661,93804.0,93788.0,0.050662]
[1767658483316,0.010661,93804.0,93788.0,0.09893334]
[1767658483726,0.010661,93804.0,93790.0,0.010662]
[1767658483928,0.010661,93804.0,93790.0,0.050662]
[1767658484228,0.10134,93807.0,93792.0,0.05811963]
[1767658484523,0.10134,93807.0,93792.0,0.09811963]
[1767658484727,0.10134,93807.0,93792.0,0.04]
[1767658485227,0.10134,93807.0,93787.0,0.04684917]
[1767658485422,0.01066,93805.0,93787.0,0.08684917]
[1767658486119,0.01066,93805.0,93789.0,0.010662]
[1767658486421,0.010661,93803.0,93789.0,0.04]
[1767658487028,0.02167973,93802.0,93789.0,0.04]
[1767658487325,0.15785349,93796.0,93772.0,0.00294748]
[1767658487522,0.02167973,93795.0,93780.0,0.09068]
[1767658487829,0.02167973,93795.0,93780.0,0.13068]
[1767658489125,0.02167973,93795.0,93780.0,0.141343]
[1767658489330,0.02167973,93795.0,93782.0,0.01245499]
[1767658489515,0.02167973,93794.0,93783.0,0.00179199]
[1767658489720,0.02167973,93793.0,93783.0,0.04179199]
[1767658489919,0.02167973,93792.0,93783.0,0.04179199]
[1767658490118,0.02167973,93791.0,93783.0,0.04179199]
[1767658490320,0.02167973,93790.0,93783.0,0.04]
[1767658490520,0.02167973,93789.0,93783.0,0.04]
[1767658490819,0.02167973,93788.0,93783.0,0.04]
[1767658491018,0.010662,93796.0,93783.0,0.04]
[1767658491019,0.02167973,93787.0,93783.0,0.04]
[1767658491222,0.02167973,93786.0,93780.0,0.05492065]
[1767658491421,0.010662,93796.0,93780.0,0.18815669]
[1767658491622,0.02223133,93795.0,93780.0,0.18815669]
[1767658491927,0.010662,93796.0,93780.0,0.18815669]
[1767658492126,0.010662,93796.0,93781.0,0.010663]
[1767658492427,0.010662,93796.0,93781.0,0.050663]
[1767658493239,0.010661,93799.0,93781.0,0.050663]
[1767658493434,0.06949208,93799.0,93781.0,0.050663]
[1767658493734,0.010661,93797.0,93781.0,0.050663]
[1767658496022,0.010662,93795.0,93781.0,0.050663]
[1767658496832,0.010661,93798.0,93783.0,0.010663]
[1767658497018,0.010661,93798.0,93783.0,0.050663]
[1767658497219,0.010661,93796.0,93783.0,0.050663]
[1767658497417,0.010661,93796.0,93783.0,0.04]
[1767658498924,0.010662,93794.0,93783.0,0.04]
[1767658499233,0.05883108,93799.0,93783.0,0.04]
[1767658500434,0.010662,93795.0,93783.0,0.04]
[1767658500933,0.06030959,93801.0,93784.0,0.010663]
[1767658501135,0.09067177,93812.0,93793.0,0.00086333]
[1767658501433,0.09068,93816.0,93793.0,0.04]
[1767658501630,0.62588,93828.0,93793.0,0.04]
[1767658501631,0.09067177,93822.0,93806.0,0.01066]
[1767658501834,0.18135177,93822.0,93806.0,0.04]
[1767658502028,0.10133077,93815.0,93799.0,0.010661]
[1767658502232,0.01066,93812.0,93799.0,0.04]
[1767658502428,0.09067177,93804.0,93799.0,0.03604835]
[1767658502624,0.010659,93814.0,93797.0,0.010661]
[1767658502824,0.09067177,93816.0,93797.0,0.010661]
[1767658502825,0.010659,93815.0,93797.0,0.040661]
[1767658503024,0.10133077,93815.0,93797.0,0.040661]
[1767658503330,0.09067177,93815.0,93799.0,0.010661]
[1767658503626,0.010659,93818.0,93801.0,0.010661]
[1767658503931,0.010659,93816.0,93801.0,0.050661]
[1767658504126,0.010659,93816.0,93801.0,0.04]
[1767658504323,0.09067177,93808.0,93788.0,0.09571351]
[1767658504529,0.09067177,93803.0,93788.0,0.04]
[1767658504926,0.010661,93804.0,93789.0,0.00453808]
[1767658505127,0.01066,93807.0,93790.0,0.00453808]
[1767658505328,0.01066,93807.0,93790.0,0.04453808]
[1767658505729,0.010661,93805.0,93790.0,0.04]
[1767658505927,0.10133277,93801.0,93790.0,0.04]
[1767658506330,0.0632087,93796.0,93775.0,0.010664]
[1767658506628,0.010662,93791.0,93779.0,0.04213268]
[1767658506835,0.10133377,93791.0,93779.0,0.04213268]
[1767658507029,0.09067177,93784.0,93779.0,0.04213268]
[1767658507628,0.09067177,93784.0,93779.0,0.04]
[1767658507835,0.09067177,93784.0,93779.0,6.8e-07]
[1767658508138,0.010663,93786.0,93764.0,0.0001174]
[1767658508139,0.010663,93779.0,93764.0,0.0001174]
[1767658508339,0.0632087,93779.0,93764.0,0.0001174]
[1767658508526,0.09067177,93780.0,93764.0,0.0401174]
[1767658508527,0.09068,93778.0,93764.0,0.0401174]
[1767658509331,0.09068,93778.0,93765.0,0.010615]
[1767658509540,0.09068,93778.0,93765.0,0.04]
[1767658509932,0.101344,93778.0,93765.0,0.04]
[1767658510330,0.19201577,93778.0,93765.0,0.04]
[1767658510531,0.09068,93778.0,93768.0,0.08607287]
[1767658510737,0.09068,93782.0,93768.0,0.12607287]
[1767658510935,0.09068,93782.0,93768.0,0.04]
[1767658512136,0.010662,93791.0,93772.0,0.05575201]
[1767658512328,0.010662,93791.0,93773.0,0.05575201]
[1767658512638,0.10133377,93791.0,93773.0,0.09575201]
[1767658512839,0.10133377,93791.0,93773.0,0.04]
[1767658513339,0.08607287,93790.0,93774.0,0.010664]
[1767658513534,0.09067177,93791.0,93774.0,0.050664]
[1767658513730,0.09068,93793.0,93778.0,0.010663]
[1767658513935,0.09068,93793.0,93778.0,0.050663]
[1767658514144,0.09068,93793.0,93778.0,0.04]
[1767658514335,0.19201377,93793.0,93778.0,0.04]
[1767658514528,0.09067177,93788.0,93778.0,0.04]
[1767658514726,0.09067177,93788.0,93770.0,0.08607287]
[1767658514727,0.09067177,93784.0,93764.0,0.0001174]
[1767658514930,0.10133577,93775.0,93764.0,0.0401174]
[1767658515333,0.09633577,93775.0,93764.0,0.0401174]
[1767658515632,0.09067177,93775.0,93764.0,0.0401174]
[1767658517032,0.14928157,93780.0,93764.0,0.0401174]
[1767658517537,0.010663,93783.0,93764.0,0.0401174]
[1767658517538,0.09068,93783.0,93766.0,0.06396567]
[1767658517735,0.09068,93783.0,93766.0,0.10396567]
[1767658517939,0.09068,93783.0,93770.0,0.08607287]
[1767658518137,0.0632087,93791.0,93770.0,0.08607287]
[1767658518138,0.010662,93788.0,93770.0,0.18101579]
[1767658518344,0.09068,93791.0,93772.0,0.05494292]
[1767658518635,0.09068,93791.0,93772.0,0.04]
[1767658518636,0.08607287,93790.0,93772.0,0.04]
[1767658518842,0.010663,93787.0,93772.0,0.04]
[1767658519027,0.10133477,93787.0,93772.0,0.04]
[1767658519734,0.10133477,93785.0,93772.0,0.04]
[1767658520240,0.08607287,93790.0,93774.0,0.010664]
[1767658520443,0.17674464,93790.0,93774.0,0.050664]
[1767658520837,0.09068,93791.0,93780.0,0.09673587]
[1767658521037,0.09067177,93796.0,93780.0,0.13673587]
[1767658521735,0.09067177,93796.0,93780.0,0.12607287]
[1767658522132,0.09067177,93784.0,93780.0,0.04]
[1767658522338,0.09067177,93784.0,93768.0,0.09068]
[1767658522538,0.09067177,93783.0,93768.0,0.13068]
[1767658522843,0.08567177,93783.0,93768.0,0.13068]
[1767658523047,0.0632087,93779.0,93768.0,0.04]
[1767658523342,0.0582087,93779.0,93768.0,0.04]
[1767658523543,0.010664,93774.0,93764.0,0.0001174]
[1767658523741,0.010664,93774.0,93764.0,0.0401174]
[1767658524338,0.010664,93774.0,93764.0,0.0400674]
[1767658525033,0.10133577,93774.0,93764.0,0.0379884]
[1767658525638,0.09067177,93774.0,93764.0,0.0379884]
[1767658525937,0.0632087,93808.0,93780.0,0.010663]
[1767658526137,0.010661,93802.0,93786.0,0.010662]
[1767658526332,0.10144283,93807.0,93791.0,0.010662]
[1767658526535,0.10144283,93807.0,93791.0,0.0486504]
[1767658526947,0.010661,93805.0,93791.0,0.0379884]
[1767658527146,0.010661,93803.0,93791.0,0.0379884]
[1767658527334,0.01066,93805.0,93791.0,4e-07]
[1767658527537,0.0632087,93806.0,93780.0,0.010663]
[1767658527538,0.0738697,93797.0,93780.0,0.010663]
[1767658527742,0.010662,93793.0,93780.0,0.03]
[1767658528341,0.010662,93791.0,93780.0,0.03]
[1767658528541,0.00012113,93796.0,93783.0,0.010663]
[1767658528738,0.00012113,93796.0,93783.0,0.04]
[1767658529340,0.15388047,93794.0,93783.0,0.02932]
[1767658529842,0.010663,93784.0,93767.0,0.010665]
[1767658530032,0.010663,93780.0,93768.0,0.09068]
[1767658530236,0.15388047,93781.0,93768.0,0.04]
[1767658530438,0.16454347,93781.0,93768.0,0.04]
[1767658530848,0.09067177,93781.0,93768.0,0.04]
[1767658531050,0.00013354,93783.0,93768.0,0.04]
[1767658533241,0.10676671,93775.0,93749.0,0.16001188]
[1767658533548,0.010664,93773.0,93750.0,0.09068]
[1767658533749,0.010664,93773.0,93750.0,0.13068]
[1767658534342,0.00013149,93774.0,93756.0,0.010666]
[1767658534652,0.00013149,93774.0,93758.0,0.010666]
[1767658534947,0.02181053,93773.0,93758.0,0.050666]
[1767658535150,0.02181053,93772.0,93758.0,0.04]
[1767658535852,0.02181053,93772.0,93759.0,0.010666]
[1767658536050,0.02181053,93771.0,93759.0,0.050666]
[1767658536239,0.02181053,93770.0,93759.0,0.050666]
[1767658536441,0.02181053,93769.0,93759.0,0.04]
[1767658536636,0.02181053,93768.0,93759.0,0.04]
[1767658536842,0.02181053,93767.0,93759.0,0.04]
[1767658537151,0.02181053,93766.0,93759.0,0.04]
[1767658537349,0.02181053,93765.0,93759.0,0.04]
[1767658537646,0.02181053,93764.0,93759.0,0.04]
[1767658537842,0.02181053,93763.0,93759.0,0.04]
[1767658538044,0.02181053,93762.0,93759.0,0.04]
[1767658538250,0.02181053,93761.0,93759.0,0.04]
[1767658538445,0.02193688,93760.0,93759.0,0.04]
[1767658538646,0.00012635,93760.0,93759.0,0.04]
[1767658538845,0.02193688,93760.0,93759.0,0.04]
[1767658539044,0.00012635,93760.0,93759.0,0.04]
[1767658539244,0.010664,93773.0,93759.0,0.04]
[1767658539446,0.02222922,93772.0,93759.0,0.04]
[1767658539646,0.010664,93773.0,93759.0,0.04]
[1767658540050,0.010664,93771.0,93759.0,0.04]
[1767658540250,0.010665,93768.0,93759.0,0.04]
[1767658541457,0.15836276,93773.0,93749.0,0.16001188]
[1767658541656,0.15836276,93770.0,93749.0,0.13575561]
[1767658541964,0.09068,93774.0,93752.0,0.16217681]
[1767658542149,0.010665,93766.0,93752.0,0.04]
[1767658542456,0.010665,93770.0,93752.0,0.04]
[1767658542848,0.09610271,93772.0,93755.0,0.010666]
[1767658543154,0.010664,93771.0,93755.0,0.04]
[1767658543656,0.010664,93771.0,93756.0,0.010666]
[1767658543855,0.005664,93771.0,93756.0,0.050666]
[1767658544159,0.24904276,93774.0,93756.0,0.04]
[1767658544458,0.010665,93768.0,93756.0,0.04]
[1767658544660,0.010665,93766.0,93756.0,0.04]
[1767658544954,0.15836276,93771.0,93756.0,0.04]
[1767658545260,0.010665,93766.0,93756.0,0.04]
[1767658545460,0.10676771,93769.0,93756.0,0.04]
[1767658545659,0.010664,93772.0,93757.0,0.010666]
[1767658545859,0.010665,93766.0,93757.0,0.04]
[1767658546163,0.005665,93766.0,93757.0,0.04]
[1767658546560,0.010665,93764.0,93757.0,0.04]
[1767658547364,0.06226005,93765.0,93752.0,0.010666]
[1767658547660,0.09674485,93770.0,93756.0,0.09362224]
[1767658547860,0.09610271,93779.0,93756.0,0.20217681]
[1767658548055,0.09068,93778.0,93756.0,0.20217681]
[1767658548250,0.010664,93772.0,93757.0,0.010666]
[1767658548454,0.010664,93776.0,93760.0,0.010666]
[1767658548651,0.010663,93781.0,93765.0,0.010665]
[1767658548950,0.08608085,93780.0,93765.0,0.050665]
[1767658549155,0.010663,93779.0,93765.0,0.050665]
[1767658549349,0.010664,93777.0,93765.0,0.04]
[1767658549544,0.24444361,93775.0,93754.0,0.010666]
[1767658549757,0.08608085,93770.0,93754.0,0.09068]
[1767658549954,0.08608085,93770.0,93759.0,0.010666]
[1767658550155,0.010664,93772.0,93759.0,0.04]
[1767658550459,0.16902676,93775.0,93759.0,0.050666]
[1767658550757,0.10676671,93775.0,93759.0,0.050666]
[1767658551359,0.02242242,93774.0,93759.0,0.050666]
[1767658551561,0.02242242,93773.0,93759.0,0.04]
[1767658551759,0.08608085,93770.0,93759.0,0.04]
[1767658552060,0.02242242,93769.0,93759.0,0.04]
[1767658552359,0.02242242,93768.0,93759.0,0.04]
[1767658552661,0.02242242,93767.0,93759.0,0.04]
[1767658552849,0.02242242,93766.0,93759.0,0.04]
[1767658553046,0.02242242,93765.0,93759.0,0.04]
[1767658553360,0.02242242,93764.0,93759.0,0.04]
[1767658553559,0.02242242,93763.0,93759.0,0.04]
[1767658553750,0.02242242,93762.0,93759.0,0.04]
[1767658553953,0.08608085,93770.0,93759.0,0.04]
[1767658554153,0.09674485,93770.0,93759.0,0.04]
[1767658554863,0.08608085,93770.0,93759.0,0.04]
[1767658556364,0.010664,93778.0,93759.0,0.050666]
[1767658556567,0.010664,93776.0,93759.0,0.21279224]
[1767658557056,0.09098774,93789.0,93766.0,0.08608085]
[1767658557255,0.09098774,93789.0,93770.0,0.08608085]
[1767658557256,0.010663,93782.0,93770.0,0.08608085]
[1767658557562,0.010664,93778.0,93770.0,0.04]
[1767658557950,0.010664,93778.0,93770.0,0.00093042]
[1767658558264,0.010664,93775.0,93760.0,0.08608085]
[1767658558563,0.010664,93775.0,93761.0,0.09068]
[1767658558763,0.010664,93778.0,93762.0,0.010665]
[1767658558965,0.010664,93778.0,93762.0,0.050665]
[1767658559159,0.04674485,93780.0,93762.0,0.050665]
[1767658560163,0.010664,93778.0,93762.0,0.050665]
[1767658560470,0.010664,93778.0,93762.0,0.141345]
[1767658560661,0.010664,93778.0,93764.0,0.010665]
[1767658560856,0.09068,93783.0,93771.0,0.15739217]
[1767658561056,0.010663,93781.0,93771.0,0.19739217]
[1767658561861,0.010663,93781.0,93771.0,0.13090028]
[1767658562866,0.010663,93781.0,93771.0,0.04]
[1767658563065,0.010663,93779.0,93771.0,0.04]
[1767658566768,0.17676085,93790.0,93771.0,0.04]
[1767658567163,0.010664,93778.0,93771.0,0.04]
[1767658567369,0.010664,93778.0,93767.0,0.04849928]
[1767658567673,0.010664,93778.0,93767.0,0.08849928]
[1767658567975,0.010664,93778.0,93768.0,0.08608085]
[1767658568277,0.010664,93778.0,93768.0,0.04]
[1767658569464,0.010663,93784.0,93768.0,0.04]
[1767658569665,0.010663,93783.0,93769.0,0.06649189]
[1767658569865,0.010663,93783.0,93770.0,0.15739217]
[1767658570066,0.010663,93787.0,93777.0,0.15739217]
[1767658570268,0.010662,93788.0,93777.0,0.05525267]
[1767658570471,0.09068,93790.0,93777.0,0.04]
[1767658570776,0.010663,93786.0,93777.0,0.04]
[1767658570975,0.09068,93790.0,93777.0,0.04]
[1767658570976,0.010663,93784.0,93777.0,0.04]
[1767658571471,0.101342,93790.0,93777.0,0.04]
[1767658571669,0.09068,93790.0,93777.0,0.04]
[1767658571869,0.010662,93789.0,93777.0,0.04]
[1767658572271,0.09068,93790.0,93777.0,0.04]
[1767658573273,0.09063555,93796.0,93777.0,0.04]
[1767658573478,0.09063555,93796.0,93777.0,0.04283861]
[1767658573668,0.09063555,93796.0,93777.0,0.04]
[1767658575180,0.010663,93783.0,93777.0,0.04]
[1767658575676,0.010663,93786.0,93777.0,0.04]
[1767658576476,0.010663,93783.0,93777.0,0.04]
[1767658577368,0.010663,93783.0,93777.0,0.00494348]
[1767658577569,0.010663,93786.0,93777.0,0.04]
[1767658578072,0.010662,93789.0,93777.0,0.04]
[1767658578674,0.010662,93792.0,93778.0,0.09197872]
[1767658578970,0.24531903,93799.0,93778.0,0.13090028]
[1767658579170,0.010663,93787.0,93778.0,0.04]
[1767658579978,0.010662,93790.0,93778.0,0.04]
[1767658580878,0.010662,93788.0,93778.0,0.04]
[1767658581080,0.010663,93785.0,93778.0,0.04]
[1767658581287,0.15463903,93779.0,93766.0,0.09068]
[1767658581574,0.09063555,93779.0,93767.0,0.010665]
[1767658581776,0.07466648,93783.0,93767.0,0.04]
[1767658581980,0.06400348,93783.0,93767.0,0.04]
[1767658582277,0.09063555,93783.0,93767.0,0.04]
[1767658582579,0.09063555,93783.0,93771.0,0.010664]
[1767658582779,0.010662,93789.0,93773.0,0.010664]
[1767658582980,0.010662,93789.0,93773.0,0.050664]
[1767658583181,0.010662,93790.0,93773.0,0.14156428]
[1767658583380,0.15463903,93794.0,93773.0,0.13090028]
[1767658583576,0.09063555,93792.0,93773.0,0.04]
[1767658583885,0.010663,93787.0,93773.0,0.04]
[1767658584180,0.010663,93783.0,93773.0,0.04]
[1767658584583,0.09063555,93784.0,93773.0,0.04]
[1767658585268,0.10129855,93782.0,93773.0,0.04]
[1767658585476,0.15463903,93781.0,93773.0,0.04]
[1767658586168,0.15463903,93780.0,93763.0,0.010665]
[1767658586369,0.09063555,93778.0,93764.0,0.010665]
[1767658586571,0.09063555,93778.0,93764.0,0.050665]
[1767658586783,0.09063555,93778.0,93764.0,0.04]
[1767658587683,0.09063555,93778.0,93764.0,0.050665]
[1767658588685,0.06400348,93783.0,93766.0,0.010665]
[1767658588983,0.10129855,93784.0,93766.0,0.010665]
[1767658588984,0.10129855,93784.0,93766.0,0.050665]
[1767658589685,0.10129855,93784.0,93766.0,0.04]
[1767658589986,0.16530203,93784.0,93766.0,0.04]
[1767658590285,0.010663,93782.0,93766.0,0.04]
[1767658591088,0.010663,93780.0,93766.0,0.04]
[1767658592083,0.10129855,93783.0,93766.0,0.04]
[1767658593280,0.010663,93785.0,93767.0,0.04180686]
[1767658593587,0.010662,93788.0,93772.0,0.04180686]
[1767658593787,0.010662,93788.0,93773.0,0.04180686]
[1767658593977,0.010662,93788.0,93775.0,0.04171396]
[1767658594173,0.010662,93788.0,93775.0,0.04]
[1767658595289,0.101342,93789.0,93775.0,0.04]
[1767658595878,0.09923714,93795.0,93775.0,0.04]
[1767658596083,0.18583948,93796.0,93776.0,0.09556676]
[1767658596084,0.09068,93796.0,93776.0,0.09556676]